bitfinex-derivatives/quotes_BTCF0:USTF0_20250910
["timestamp","ask_amount","ask_price","bid_price","bid_amount"]
[1757534419166,0.03654,113630.0,113620.0,1.4506]
[1757534419776,0.03654,113630.0,113620.0,0.6376]
[1757534419976,0.03654,113630.0,113620.0,1.45052]
[1757534420471,0.03654,113630.0,113620.0,0.6376]
[1757534420676,0.03654,113630.0,113620.0,1.45036]
[1757534425588,0.20011852,113630.0,113620.0,1.19956]
[1757534426482,0.03654,113630.0,113620.0,1.19956]
[1757534426780,0.20011852,113630.0,113620.0,1.19956]
[1757534426976,0.03554,113630.0,113620.0,1.19356]
[1757534428482,0.03554,113630.0,113620.0,1.19256]
[1757534428784,0.03454,113630.0,113620.0,1.18656]
[1757534429186,0.03454,113630.0,113620.0,1.1864]
[1757534430285,0.19811852,113630.0,113620.0,0.8246]
[1757534430481,0.19811852,113630.0,113620.0,0.82436]
[1757534430685,0.19811852,113630.0,113620.0,1.18516]
[1757534433275,0.03454,113630.0,113620.0,1.18516]
[1757534433478,0.19811852,113630.0,113620.0,1.18516]
[1757534434579,0.03454,113630.0,113620.0,1.18516]
[1757534434980,0.19811852,113630.0,113620.0,1.18516]
[1757534435286,0.03454,113630.0,113620.0,1.18516]
[1757534437087,0.19811852,113630.0,113620.0,1.18516]
[1757534437489,0.03454,113630.0,113620.0,1.18516]
[1757534439584,0.03454,113630.0,113620.0,0.3736]
[1757534439886,0.03454,113630.0,113620.0,1.18428]
[1757534440186,0.05823185,113630.0,113620.0,1.18428]
[1757534440587,0.05823185,113630.0,113620.0,1.18424]
[1757534440787,0.05823185,113630.0,113620.0,1.18412]
[1757534441180,0.05823185,113630.0,113620.0,0.3736]
[1757534441384,0.01278,113630.0,113620.0,1.34785852]
[1757534441987,0.01278,113630.0,113620.0,1.18428]
[1757534447399,0.01278,113630.0,113620.0,1.34785852]
[1757534448297,0.01278,113630.0,113620.0,1.18428]
[1757534448496,0.01278,113630.0,113620.0,1.34785852]
[1757534448694,0.01278,113630.0,113620.0,1.18428]
[1757534448890,0.01278,113630.0,113620.0,1.34785852]
[1757534449398,0.01278,113630.0,113620.0,1.18428]
[1757534449691,0.03534,113630.0,113620.0,1.18376]
[1757534450389,0.15248487,113630.0,113620.0,1.18376]
[1757534451390,0.15248487,113630.0,113620.0,1.184]
[1757534452591,0.03534,113630.0,113620.0,0.3736]
[1757534452790,0.15248487,113630.0,113620.0,1.18408]
[1757534452993,0.15248487,113630.0,113620.0,1.30122487]
[1757534453393,0.15248487,113630.0,113620.0,1.30106487]
[1757534453394,0.03534,113630.0,113620.0,1.30106487]
[1757534453893,0.15248487,113630.0,113620.0,0.3736]
[1757534454098,0.15248487,113630.0,113620.0,1.18404]
[1757534454498,0.15248487,113630.0,113620.0,0.82316]
[1757534454896,0.15248487,113630.0,113620.0,0.0128]
[1757534455100,0.15248487,113630.0,113620.0,0.82312]
[1757534456401,0.15248487,113630.0,113620.0,0.0128]
[1757534456599,0.15248487,113630.0,113620.0,0.82388]
[1757534458003,0.17617282,113630.0,113620.0,0.82388]
[1757534458405,0.17617282,113630.0,113620.0,0.0128]
[1757534458601,0.17617282,113630.0,113620.0,0.8236]
[1757534458806,0.15248487,113630.0,113620.0,0.0128]
[1757534459000,0.15248487,113630.0,113620.0,0.82356]
[1757534459396,0.15248487,113630.0,113620.0,0.8236]
[1757534459599,0.15248487,113630.0,113620.0,0.0128]
[1757534459801,0.15248487,113630.0,113620.0,0.8236]
[1757534462310,0.03534,113630.0,113620.0,0.8236]
[1757534462504,0.03534,113630.0,113620.0,1.30154487]
[1757534462708,0.01278,113630.0,113620.0,1.30154487]
[1757534463204,0.01278,113630.0,113620.0,0.49074487]
[1757534463709,0.01278,113630.0,113620.0,1.30190487]
[1757534464108,0.03482,113630.0,113620.0,0.49074487]
[1757534464308,0.21053509,113630.0,113620.0,0.3736]
[1757534464507,0.21053509,113630.0,113620.0,1.36039509]
[1757534464708,0.03482,113630.0,113620.0,1.36039509]
[1757534464911,0.21053509,113630.0,113620.0,1.36039509]
[1757534466208,0.01278,113630.0,113620.0,1.53611018]
[1757534466415,0.18849509,113630.0,113620.0,1.36039509]
[1757534466713,0.18849509,113630.0,113620.0,1.53611018]
[1757534467012,0.01278,113630.0,113620.0,1.53611018]
[1757534467912,0.01278,113630.0,113620.0,1.78611018]
[1757534468118,0.01278,113630.0,113620.0,2.04981277]
[1757534468418,0.03319105,113640.0,113620.0,2.61981277]
[1757534468613,0.03319105,113640.0,113630.0,0.71223018]
[1757534468809,0.01278,113640.0,113630.0,0.71223018]
[1757534470012,0.01278,113640.0,113630.0,0.72103018]
[1757534470316,0.01278,113640.0,113630.0,0.80900948]
[1757534470518,0.01278,113640.0,113630.0,0.81100948]
[1757534470722,1.26278,113640.0,113630.0,0.81100948]
[1757534471015,1.26278,113640.0,113630.0,0.81200948]
[1757534471316,1.26278,113640.0,113630.0,0.72403018]
[1757534471713,1.26278,113640.0,113630.0,0.3726]
[1757534472018,1.26278,113640.0,113630.0,0.72403018]
[1757534473918,1.26278,113640.0,113630.0,1.18328]
[1757534474103,1.26278,113640.0,113630.0,0.72403018]
[1757534474308,1.26278,113640.0,113630.0,1.35899509]
[1757534476017,1.26278,113640.0,113630.0,1.53507018]
[1757534477319,1.26278,113640.0,113630.0,1.62304948]
[1757534477518,1.26278,113640.0,113630.0,1.76304948]
[1757534477722,1.26278,113640.0,113630.0,2.36304948]
[1757534479021,0.01278,113640.0,113630.0,2.36304948]
[1757534479227,0.03358605,113650.0,113630.0,2.36304948]
[1757534479521,0.03358605,113650.0,113640.0,0.71223018]
[1757534479522,1.28358605,113650.0,113640.0,0.71223018]
[1757534480127,1.2635,113650.0,113640.0,1.23591687]
[1757534480333,1.2635,113650.0,113640.0,2.14263018]
[1757534480535,1.2635,113650.0,113640.0,2.14363018]
[1757534480938,1.2635,113650.0,113640.0,2.23160098]
[1757534481631,1.2635,113650.0,113640.0,2.14663018]
[1757534482138,0.0135,113650.0,113640.0,2.14663018]
[1757534482340,0.0135,113650.0,113640.0,2.14963018]
[1757534483135,0.0135,113650.0,113640.0,2.15890018]
[1757534483535,0.0135,113650.0,113640.0,2.15866018]
[1757534483937,0.0135,113650.0,113640.0,1.34802018]
[1757534484141,0.0135,113650.0,113640.0,2.15854018]
[1757534484340,0.0135,113650.0,113640.0,1.34802018]
[1757534484541,0.0135,113650.0,113640.0,2.15850018]
[1757534485943,0.0135,113650.0,113640.0,2.15842018]
[1757534487446,0.0135,113650.0,113640.0,1.34802018]
[1757534487748,0.0135,113650.0,113640.0,2.15806018]
[1757534489746,0.0135,113650.0,113640.0,2.15774018]
[1757534490553,0.0135,113650.0,113640.0,2.33345527]
[1757534490853,0.01278,113660.0,113650.0,0.087963]
[1757534491155,0.01278,113660.0,113650.0,3.08459318]
[1757534491349,0.01278,113660.0,113650.0,3.89427318]
[1757534492052,0.01278,113660.0,113650.0,3.89527318]
[1757534492552,0.01278,113660.0,113650.0,3.96588987]
[1757534492854,0.01278,113660.0,113650.0,3.15620987]
[1757534493055,0.01278,113660.0,113650.0,3.96788987]
[1757534493549,0.01392,113680.0,113660.0,0.0879552]
[1757534493756,0.01392,113680.0,113670.0,1.88271018]
[1757534493956,0.01392,113680.0,113670.0,1.70699509]
[1757534494456,0.03611,113680.0,113670.0,1.70695509]
[1757534495455,0.01392,113680.0,113670.0,1.70695509]
[1757534496058,0.01392,113680.0,113670.0,1.88267018]
[1757534497155,0.01392,113680.0,113670.0,1.53124]
[1757534497463,0.01392,113680.0,113670.0,1.07303018]
[1757534497648,0.01392,113680.0,113670.0,1.88263018]
[1757534498356,0.01392,113680.0,113670.0,1.70691509]
[1757534499445,0.01392,113680.0,113670.0,0.89731509]
[1757534499650,0.01392,113680.0,113670.0,1.70687509]
[1757534499957,0.01392,113680.0,113670.0,1.88259018]
[1757534502162,0.01392,113680.0,113670.0,0.7216]
[1757534502457,0.63754018,113680.0,113670.0,0.7216]
[1757534502766,0.63754018,113680.0,113670.0,1.53112]
[1757534502958,0.66113304,113680.0,113670.0,1.17032]
[1757534503463,0.30970286,113680.0,113670.0,1.17032]
[1757534503662,0.48541795,113680.0,113670.0,1.34603509]
[1757534503857,0.05970286,113680.0,113670.0,1.34603509]
[1757534504054,0.03611,113680.0,113670.0,1.70683509]
[1757534504658,0.01392,113680.0,113670.0,1.70683509]
[1757534504860,0.01392,113680.0,113670.0,1.53112]
[1757534505056,0.01392,113680.0,113670.0,1.71562509]
[1757534505262,0.01392,113680.0,113670.0,1.53991]
[1757534505456,0.01392,113680.0,113670.0,1.71562509]
[1757534507071,0.01392,113680.0,113670.0,1.89134018]
[1757534507262,0.01392,113680.0,113670.0,1.71562509]
[1757534508364,0.01392,113680.0,113670.0,1.53991]
[1757534508667,0.01392,113680.0,113670.0,1.71562509]
[1757534508961,0.01392,113680.0,113670.0,0.73039]
[1757534509164,0.23544178,113680.0,113670.0,1.54311]
[1757534509364,0.23544178,113680.0,113670.0,1.71890509]
[1757534510668,0.23544178,113680.0,113670.0,1.54319]
[1757534510864,0.23544178,113680.0,113670.0,1.71890509]
[1757534511369,0.23544178,113680.0,113670.0,1.54319]
[1757534511572,0.23544178,113680.0,113670.0,1.71890509]
[1757534512170,0.23544178,113680.0,113670.0,1.71846509]
[1757534513468,0.23544178,113680.0,113670.0,1.54275]
[1757534513770,0.23544178,113680.0,113670.0,1.71846509]
[1757534514770,0.23544178,113680.0,113670.0,0.90610509]
[1757534515070,0.23544178,113680.0,113670.0,1.71814509]
[1757534515270,0.23544178,113680.0,113670.0,1.54243]
[1757534515470,0.23544178,113680.0,113670.0,1.71814509]
[1757534515968,0.03753669,113680.0,113670.0,1.71814509]
[1757534516167,0.01392,113680.0,113670.0,1.71814509]
[1757534516873,0.01392,113680.0,113670.0,1.54243]
[1757534517074,0.01392,113680.0,113670.0,1.71814509]
[1757534519069,0.03541,113680.0,113670.0,1.71754509]
[1757534520269,0.03541,113680.0,113670.0,0.90610509]
[1757534520472,0.03541,113680.0,113670.0,1.71738509]
[1757534520671,0.21112509,113680.0,113670.0,1.71738509]
[1757534523571,0.21112509,113680.0,113670.0,1.71702509]
[1757534523875,0.21112509,113680.0,113670.0,1.71690509]
[1757534524276,0.21112509,113680.0,113670.0,1.54119]
[1757534524474,0.21112509,113680.0,113670.0,1.71690509]
[1757534524886,0.03541,113680.0,113670.0,1.71690509]
[1757534525978,0.01392,113680.0,113670.0,1.89262018]
[1757534526376,0.01392,113680.0,113670.0,1.6581911]
[1757534530578,0.01392,113680.0,113670.0,1.6681911]
[1757534531571,0.03541,113680.0,113670.0,1.6676711]
[1757534532580,0.03541,113680.0,113670.0,1.6678711]
[1757534533182,0.03541,113680.0,113670.0,1.6677111]
[1757534535486,0.03541,113680.0,113670.0,1.55071]
[1757534535687,0.03541,113680.0,113670.0,1.6677111]
[1757534536587,0.01392,113680.0,113670.0,1.6677111]
[1757534537678,0.01392,113680.0,113670.0,1.55071]
[1757534537884,0.01392,113680.0,113670.0,1.6677111]
[1757534538474,0.01392,113680.0,113670.0,1.55071]
[1757534538684,0.01392,113680.0,113670.0,1.6677111]
[1757534540386,0.03541,113680.0,113670.0,0.8573911]
[1757534540579,0.03541,113680.0,113670.0,1.6676711]
[1757534540976,0.03541,113680.0,113670.0,0.74039]
[1757534541179,0.03541,113680.0,113670.0,1.6584311]
[1757534541381,0.1524111,113680.0,113670.0,1.6584311]
[1757534542886,0.03541,113680.0,113670.0,1.6584311]
[1757534544483,0.03541,113680.0,113670.0,1.54143]
[1757534544683,0.03541,113680.0,113670.0,1.6584311]
[1757534545794,0.03541,113680.0,113670.0,1.54143]
[1757534545994,0.03541,113680.0,113670.0,1.6584311]
[1757534548694,0.1524111,113680.0,113670.0,0.73039]
[1757534548895,0.1524111,113680.0,113670.0,1.54051]
[1757534551690,0.1524111,113680.0,113670.0,0.73039]
[1757534551890,0.1524111,113680.0,113670.0,1.54027]
[1757534552093,0.1524111,113680.0,113670.0,1.54011]
[1757534552690,0.03541,113680.0,113670.0,1.54011]
[1757534553197,0.1524111,113680.0,113670.0,1.54011]
[1757534553691,0.1524111,113680.0,113670.0,0.73039]
[1757534553892,0.1524111,113680.0,113670.0,1.54011]
[1757534554093,0.03541,113680.0,113670.0,1.54011]
[1757534554393,0.1524111,113680.0,113670.0,1.54011]
[1757534557093,0.2694122,113680.0,113670.0,0.73039]
[1757534557297,0.2694122,113680.0,113670.0,1.54011]
[1757534557596,0.2694122,113680.0,113670.0,0.73039]
[1757534558192,0.2694122,113680.0,113670.0,1.54011]
[1757534558997,0.5194122,113680.0,113670.0,0.73039]
[1757534559198,0.5194122,113680.0,113670.0,1.54019]
[1757534559399,0.2694122,113680.0,113670.0,1.54019]
[1757534559797,0.2694122,113680.0,113670.0,0.73039]
[1757534559997,0.29338323,113680.0,113670.0,1.17931]
[1757534561200,0.90418323,113680.0,113670.0,0.81851]
[1757534561602,0.90418323,113680.0,113670.0,0.81855]
[1757534562491,0.91317222,113680.0,113670.0,0.81855]
[1757534563101,0.91317222,113680.0,113670.0,0.00879]
[1757534563402,0.91317222,113680.0,113670.0,0.81855]
[1757534564098,0.67018103,113680.0,113670.0,0.81855]
[1757534564403,0.90418323,113680.0,113670.0,0.81855]
[1757534568102,0.90418323,113680.0,113670.0,0.00879]
[1757534568309,0.91291689,113680.0,113670.0,0.00879]
[1757534568608,0.90418323,113680.0,113670.0,0.00879]
[1757534568802,0.67018103,113680.0,113670.0,0.00879]
[1757534569002,0.90418323,113680.0,113670.0,0.00879]
[1757534571504,0.8802122,113680.0,113670.0,0.00879]
[1757534571706,0.90414383,113680.0,113670.0,0.00879]
[1757534571904,0.8802122,113680.0,113670.0,0.00879]
[1757534572607,0.90414276,113680.0,113670.0,0.00879]
[1757534574203,0.8802122,113680.0,113670.0,0.00879]
[1757534574405,0.9972133,113680.0,113670.0,0.00879]
[1757534574605,1.02114327,113680.0,113670.0,0.00879]
[1757534574907,0.77114327,113680.0,113670.0,0.00879]
[1757534576711,0.65414217,113680.0,113670.0,0.00879]
[1757534579206,0.29334217,113680.0,113670.0,0.00879]
[1757534579807,0.65414217,113680.0,113670.0,0.00879]
[1757534582719,0.77114327,113680.0,113670.0,0.00879]
[1757534582910,0.03598,113660.0,113650.0,0.07061669]
[1757534583112,0.01371,113650.0,113640.0,1.1706]
[1757534583419,0.1307111,113650.0,113640.0,1.1706]
[1757534584113,0.01371,113650.0,113640.0,0.3608]
[1757534584308,0.1529811,113650.0,113640.0,1.1736]
[1757534585115,0.1529811,113650.0,113640.0,1.18434252]
[1757534586319,0.2116541,113650.0,113640.0,1.18434252]
[1757534586618,0.3873282,113650.0,113640.0,0.3658]
[1757534586814,0.3873282,113650.0,113640.0,1.1756]
[1757534587418,0.3873282,113650.0,113640.0,0.8148]
[1757534589114,0.2116541,113650.0,113640.0,0.8148]
[1757534589314,0.2116541,113650.0,113640.0,1.1756]
[1757534598326,0.03598,113650.0,113640.0,1.1756]
[1757534598526,0.2116541,113650.0,113640.0,1.1756]
[1757534613238,0.03598,113650.0,113640.0,1.1756]
[1757534613441,0.2116541,113650.0,113640.0,1.1756]
[1757534618644,0.2116541,113650.0,113640.0,1.17536]
[1757534620345,0.2116541,113650.0,113640.0,0.3658]
[1757534620550,0.2116541,113650.0,113640.0,1.17536]
[1757534621142,0.2116541,113650.0,113640.0,1.17532]
[1757534623649,0.2116541,113650.0,113640.0,1.3509941]
[1757534624755,0.03598,113650.0,113640.0,1.3509941]
[1757534624940,0.2116541,113650.0,113640.0,1.3509941]
[1757534625355,0.01371,113650.0,113640.0,1.864643]
[1757534625646,0.0314498,113660.0,113650.0,0.0879671]
[1757534625847,0.01371,113660.0,113650.0,1.68066867]
[1757534626847,0.01371,113660.0,113650.0,1.68166867]
[1757534627046,0.01371,113660.0,113650.0,1.68366867]
[1757534627452,0.01371,113660.0,113650.0,2.49310867]
[1757534628542,0.01371,113660.0,113650.0,2.40510157]
[1757534628753,0.01371,113660.0,113650.0,2.22942747]
[1757534629553,0.01371,113660.0,113650.0,1.42002747]
[1757534629756,0.01371,113660.0,113650.0,2.22938747]
[1757534630848,1.26371,113660.0,113650.0,2.22938747]
[1757534631045,1.26371,113660.0,113650.0,1.24435337]
[1757534631249,1.4393841,113660.0,113650.0,2.05367337]
[1757534631444,1.4393841,113660.0,113650.0,2.22934747]
[1757534631644,1.26371,113660.0,113650.0,2.22934747]
[1757534632055,0.01371,113660.0,113650.0,2.22934747]
[1757534632759,0.1893841,113660.0,113650.0,1.17002747]
[1757534632952,0.1893841,113660.0,113650.0,1.97930747]
[1757534633249,0.1893841,113660.0,113650.0,1.17002747]
[1757534633454,0.1893841,113660.0,113650.0,1.97926747]
[1757534634053,0.1893841,113660.0,113650.0,1.17002747]
[1757534634252,0.1893841,113660.0,113650.0,1.97926747]
[1757534635249,0.1893841,113660.0,113650.0,1.97922747]
[1757534635452,0.03483,113660.0,113650.0,1.17002747]
[1757534635656,0.3861782,113660.0,113650.0,1.17002747]
[1757534635856,0.3861782,113660.0,113650.0,1.97922747]
[1757534636558,0.2105041,113660.0,113650.0,1.97922747]
[1757534640448,0.03483,113660.0,113650.0,1.97922747]
[1757534640951,0.2105041,113660.0,113650.0,1.97922747]
[1757534642062,0.03483,113660.0,113650.0,1.97922747]
[1757534642263,0.2105041,113660.0,113650.0,1.97922747]
[1757534642562,0.2105041,113660.0,113650.0,1.17002747]
[1757534642756,0.03483,113660.0,113650.0,1.80339337]
[1757534642957,0.2105041,113660.0,113650.0,1.97906747]
[1757534644959,0.03483,113660.0,113650.0,1.97906747]
[1757534645161,0.2105041,113660.0,113650.0,1.80339337]
[1757534645357,0.2105041,113660.0,113650.0,1.97906747]
[1757534645558,0.03483,113660.0,113650.0,1.97906747]
[1757534645866,0.2105041,113660.0,113650.0,1.97906747]
[1757534646057,0.2105041,113660.0,113650.0,2.33986747]
[1757534646559,0.2105041,113660.0,113650.0,1.53082747]
[1757534646749,0.2105041,113660.0,113650.0,2.33982747]
[1757534647250,0.2105041,113660.0,113650.0,2.33978747]
[1757534647455,0.2105041,113660.0,113650.0,1.53082747]
[1757534647656,0.2105041,113660.0,113650.0,2.33978747]
[1757534648359,0.03483,113660.0,113650.0,2.28118233]
[1757534659174,0.03483,113660.0,113650.0,1.47222233]
[1757534659474,0.03483,113660.0,113650.0,2.28094233]
[1757534662071,0.15189896,113660.0,113650.0,2.28094233]
[1757534663978,0.03483,113660.0,113650.0,2.28094233]
[1757534667880,0.03483,113660.0,113650.0,2.16387337]
[1757534668081,0.03483,113660.0,113650.0,2.28094233]
[1757534673884,0.03483,113660.0,113650.0,2.28066233]
[1757534675590,0.03483,113660.0,113650.0,2.16359337]
[1757534675790,0.03483,113660.0,113650.0,2.28066233]
[1757534679585,0.03483,113660.0,113650.0,2.16359337]
[1757534679783,0.15189896,113660.0,113650.0,1.47222233]
[1757534679993,0.15189896,113660.0,113650.0,2.28054233]
[1757534680800,1.40189896,113660.0,113650.0,2.28054233]
[1757534682902,1.28483,113660.0,113650.0,2.28054233]
[1757534686309,1.28483,113660.0,113650.0,2.16347337]
[1757534686808,1.28483,113660.0,113650.0,2.28054233]
[1757534686809,1.40189896,113660.0,113650.0,2.28054233]
[1757534688604,1.40189896,113660.0,113650.0,1.35515337]
[1757534688605,1.51896792,113660.0,113650.0,1.35515337]
[1757534688809,1.51896792,113660.0,113650.0,2.16327337]
[1757534689004,1.51896792,113660.0,113650.0,1.84323337]
[1757534689212,1.40189896,113660.0,113650.0,1.84323337]
[1757534689998,1.51896792,113660.0,113650.0,1.03515337]
[1757534690300,1.40189896,113660.0,113650.0,1.60323337]
[1757534698815,1.40189896,113660.0,113650.0,0.79515337]
[1757534699010,1.40189896,113660.0,113650.0,1.60307337]
[1757534699418,1.40189896,113660.0,113650.0,0.79515337]
[1757534699617,1.40189896,113660.0,113650.0,1.60307337]
[1757534700816,1.40189896,113660.0,113650.0,0.79515337]
[1757534701021,1.28483,113660.0,113650.0,1.60303337]
[1757534701214,1.40189896,113660.0,113650.0,1.60303337]
[1757534701720,1.28483,113660.0,113650.0,1.60303337]
[1757534702119,1.40189896,113660.0,113650.0,1.60303337]
[1757534709019,1.28483,113660.0,113650.0,1.60303337]
[1757534709220,1.40189896,113660.0,113650.0,1.60303337]
[1757534710325,1.63607612,113660.0,113650.0,1.77865643]
[1757534711523,1.28483,113660.0,113650.0,1.77865643]
[1757534711741,1.63607612,113660.0,113650.0,0.79515337]
[1757534712021,1.63607612,113660.0,113650.0,1.60291337]
[1757534712616,1.63607612,113660.0,113650.0,0.79515337]
[1757534712813,1.63607612,113660.0,113650.0,1.24207337]
[1757534719431,1.63607612,113660.0,113650.0,0.43435337]
[1757534719634,1.63607612,113660.0,113650.0,1.24203337]
[1757534720529,2.06169918,113660.0,113650.0,0.003]
[1757534720725,2.08576267,113660.0,113650.0,0.81064]
[1757534721635,2.44656267,113660.0,113650.0,0.81064]
[1757534722833,2.44856267,113660.0,113650.0,0.80764]
[1757534725528,2.44856267,113660.0,113640.0,0.3608]
[1757534725730,0.38635612,113650.0,113640.0,0.3608]
[1757534725930,0.38635612,113650.0,113640.0,1.1684]
[1757534732540,0.21073306,113650.0,113640.0,1.1684]
[1757534736241,0.38635612,113650.0,113640.0,1.1684]
[1757534737241,0.38635612,113650.0,113640.0,0.3608]
[1757534737545,0.38635612,113650.0,113640.0,1.16828]
[1757534737936,0.38635612,113650.0,113640.0,0.3608]
[1757534738142,0.38635612,113650.0,113640.0,1.16828]
[1757534740338,0.03511,113650.0,113640.0,1.34390306]
[1757534740534,0.03511,113650.0,113640.0,1.59390306]
[1757534740737,0.21073306,113650.0,113640.0,1.59390306]
[1757534742245,0.21073306,113650.0,113640.0,1.59490306]
[1757534742649,0.21073306,113650.0,113640.0,1.59590306]
[1757534743242,0.21073306,113650.0,113640.0,1.42028]
[1757534743440,0.21073306,113650.0,113640.0,1.59590306]
[1757534746549,1.46073306,113650.0,113640.0,1.59590306]
[1757534746849,1.28511,113650.0,113640.0,1.59590306]
[1757534747049,1.46073306,113650.0,113640.0,1.59590306]
[1757534748245,1.28511,113650.0,113640.0,1.59590306]
[1757534748447,1.46073306,113650.0,113640.0,1.59590306]
[1757534750750,1.46073306,113650.0,113640.0,0.78842306]
[1757534751052,1.46073306,113650.0,113640.0,1.42008]
[1757534751443,1.46073306,113650.0,113640.0,0.6128]
[1757534751654,1.46073306,113650.0,113640.0,1.42004]
[1757534753352,1.46073306,113650.0,113640.0,1.59566306]
[1757534756448,1.26336,113650.0,113640.0,1.52128612]
[1757534756658,0.01336,113650.0,113640.0,1.52128612]
[1757534757153,0.01336,113650.0,113640.0,1.17004]
[1757534757356,0.01336,113650.0,113640.0,1.52128612]
[1757534757854,0.02664838,113650.0,113640.0,1.52128612]
[1757534759145,0.20227144,113650.0,113640.0,1.52128612]
[1757534761554,0.02664838,113650.0,113640.0,1.79212965]
[1757534761760,0.02664838,113650.0,113640.0,2.36212965]
[1757534766063,0.02664838,113650.0,113640.0,2.01088353]
[1757534766363,0.02664838,113650.0,113640.0,2.36184965]
[1757534766561,0.02664838,113650.0,113640.0,2.36180965]
[1757534768861,0.02664838,113650.0,113640.0,2.19978395]
[1757534769057,0.01371,113660.0,113640.0,2.62540121]
[1757534769254,0.00761362,113670.0,113660.0,0.0879588]
[1757534769456,0.00761362,113670.0,113660.0,2.18684492]
[1757534769655,0.00761362,113670.0,113660.0,2.43684492]
[1757534770363,0.001,113670.0,113660.0,2.34047808]
[1757534770557,0.01333,113690.0,113670.0,0.0879511]
[1757534770757,0.01437,113700.0,113680.0,3.50773483]
[1757534770957,0.01437,113700.0,113690.0,0.3608]
[1757534771258,0.01437,113700.0,113690.0,1.90459523]
[1757534771462,0.01437,113700.0,113690.0,1.7876]
[1757534771762,0.01437,113700.0,113690.0,1.90459523]
[1757534772064,0.01437,113700.0,113690.0,1.93371324]
[1757534772269,0.05746118,113780.0,113690.0,1.86321281]
[1757534772568,0.12411366,113790.0,113780.0,0.0878661]
[1757534772569,0.01333,113790.0,113780.0,0.0878661]
[1757534772749,0.00875782,113820.0,113780.0,3.50014569]
[1757534772954,0.1851176,113820.0,113810.0,0.35098569]
[1757534773255,0.1851176,113820.0,113810.0,1.76674569]
[1757534773453,0.1851176,113820.0,113810.0,2.50609683]
[1757534773652,0.1851176,113820.0,113810.0,2.51982679]
[1757534773857,0.1851176,113820.0,113810.0,2.40283156]
[1757534774158,0.1851176,113820.0,113810.0,2.60766969]
[1757534774461,0.3608,113940.0,113840.0,0.3608]
[1757534774659,0.03628,113960.0,113930.0,0.52376124]
[1757534774860,0.04505012,113960.0,113950.0,0.16296124]
[1757534775187,0.04505012,113960.0,113950.0,0.01372359]
[1757534775188,0.03628,113960.0,113950.0,0.01372359]
[1757534775465,0.81004124,113960.0,113950.0,0.01372359]
[1757534775664,0.81004124,113960.0,113920.0,0.3608]
[1757534775665,0.03528,113930.0,113920.0,0.3608]
[1757534775964,0.03528,113930.0,113920.0,0.7216]
[1757534776263,0.28528,113930.0,113920.0,0.7216]
[1757534776757,0.01233,113930.0,113920.0,0.88456124]
[1757534776961,0.02633,113940.0,113920.0,0.7716]
[1757534777263,0.29928,113940.0,113930.0,0.3608]
[1757534777456,0.28628,113930.0,113920.0,0.3608]
[1757534778270,0.03628,113930.0,113920.0,0.3608]
[1757534779465,0.03628,113930.0,113920.0,0.52376124]
[1757534779764,0.28628,113930.0,113920.0,0.3608]
[1757534779964,0.28628,113930.0,113910.0,0.07038533]
[1757534779965,0.03628,113920.0,113910.0,0.07038533]
[1757534780167,0.03628,113920.0,113900.0,0.3608]
[1757534780370,0.28628,113910.0,113900.0,0.3608]
[1757534780674,0.28628,113910.0,113900.0,0.38371]
[1757534781765,0.28628,113910.0,113900.0,0.3608]
[1757534782068,0.28628,113910.0,113900.0,0.3618]
[1757534782465,0.28628,113910.0,113900.0,0.43104698]
[1757534783270,0.03628,113910.0,113900.0,0.61592822]
[1757534783568,0.03628,113910.0,113900.0,0.61492822]
[1757534784063,0.03828,113910.0,113900.0,0.61492822]
[1757534784470,0.03628,113910.0,113900.0,0.61492822]
[1757534785360,0.03628,113910.0,113900.0,0.45196698]
[1757534785560,0.03628,113910.0,113900.0,0.61492822]
[1757534788367,0.28628,113910.0,113900.0,0.43004698]
[1757534788578,0.44924124,113910.0,113900.0,0.3608]
[1757534788769,1.30580124,113910.0,113900.0,0.00877]
[1757534789172,0.03616,113900.0,113890.0,0.3608]
[1757534789373,0.19912124,113900.0,113890.0,0.3608]
[1757534789571,0.44912124,113900.0,113890.0,0.3608]
[1757534790573,0.44912124,113900.0,113890.0,0.3618]
[1757534790773,0.28616,113900.0,113890.0,0.3618]
[1757534791567,1.14184,113900.0,113890.0,0.3618]
[1757534791763,0.28616,113900.0,113890.0,0.3618]
[1757534792171,1.1412,113900.0,113890.0,0.3618]
[1757534792879,0.89104,113900.0,113890.0,0.52476124]
[1757534793081,0.89104,113900.0,113890.0,0.54668124]
[1757534793379,0.03616,113900.0,113890.0,0.54668124]
[1757534793580,0.03616,113900.0,113890.0,0.79668124]
[1757534793775,0.01333,113920.0,113890.0,0.90516054]
[1757534794073,0.03569,113920.0,113910.0,0.38272]
[1757534795279,0.03569,113920.0,113910.0,0.3608]
[1757534795476,0.44865124,113920.0,113910.0,0.3608]
[1757534795674,0.44865124,113920.0,113890.0,0.3718]
[1757534795675,1.30237124,113920.0,113900.0,0.3608]
[1757534795979,0.03616,113900.0,113890.0,0.3618]
[1757534796173,0.03616,113900.0,113890.0,0.3608]
[1757534797484,0.03616,113900.0,113890.0,0.3618]
[1757534799084,0.03616,113900.0,113890.0,0.38372]
[1757534799485,0.03616,113900.0,113890.0,0.3618]
[1757534803182,0.0138,113910.0,113890.0,0.89516434]
[1757534803374,0.03616,113910.0,113900.0,0.54568124]
[1757534804381,0.03616,113910.0,113900.0,0.56861218]
[1757534804578,0.86369,113920.0,113900.0,0.90638758]
[1757534804579,0.01333,113920.0,113900.0,0.90638758]
[1757534804889,0.19865124,113920.0,113910.0,0.38373094]
[1757534805284,0.03569,113920.0,113910.0,0.38373094]
[1757534805887,0.19865124,113920.0,113910.0,0.38373094]
[1757534806085,0.03669,113920.0,113910.0,0.38373094]
[1757534806280,0.03669,113920.0,113910.0,0.56861218]
[1757534806485,0.03669,113920.0,113910.0,0.57625583]
[1757534806775,0.03669,113920.0,113910.0,0.83502583]
[1757534807790,0.03669,113920.0,113910.0,0.39137459]
[1757534807984,0.03669,113920.0,113910.0,0.41329459]
[1757534808183,0.03669,113920.0,113910.0,0.57625583]
[1757534808483,0.03669,113920.0,113910.0,0.41329459]
[1757534808683,0.19965124,113920.0,113910.0,0.39137459]
[1757534808888,0.19965124,113920.0,113910.0,0.38419609]
[1757534809789,0.44965124,113920.0,113910.0,0.02339609]
[1757534809994,0.03616,113910.0,113900.0,0.39419609]
[1757534810313,1.04704124,113910.0,113900.0,0.38419609]